fUST/lending_fUST_20250623
["ID","MTS","AMOUNT","RATE_DAILY","PERIOD"]
[366996331,1750608671288,-460.0,0.00023561,3]
[366996332,1750608671297,-636.32,0.00023561,3]
[366996333,1750608671307,-1116.41,0.00023561,3]
[366996334,1750608671316,-460.0,0.00023561,3]
[366996335,1750608671327,-460.0,0.00023561,3]
[366996336,1750608671336,-460.0,0.00023561,3]
[366996337,1750608671345,-526.0,0.00023561,3]
[366996338,1750608671355,-460.0,0.00023561,3]
[366996339,1750608671365,-460.0,0.00023561,3]
[366996340,1750608671375,-460.0,0.00023561,3]
[366996341,1750608671385,-460.0,0.00023561,3]
[366996342,1750608671394,-460.0,0.00023561,3]
[366996343,1750608671404,-542.09,0.00023561,3]
[366996344,1750608671413,-460.0,0.00023561,3]
[366996345,1750608671423,-304.96315966,0.00023561,3]
[366996346,1750608671433,-592.81,0.00023561,3]
[366996347,1750608671442,-811.66,0.00023561,3]
[366996348,1750608671452,-460.0,0.00023561,3]
[366996349,1750608671461,-460.0,0.00023561,3]
[366996350,1750608671471,-188.60235149,0.00023561,3]
[366996351,1750608671482,-460.0,0.00023561,3]
[366996352,1750608671492,-460.0,0.00023561,3]
[366996353,1750608671502,-460.0,0.00023561,3]
[366996354,1750608671512,-658.49,0.00023561,3]
[366996355,1750608671522,-460.0,0.00023561,3]
[366996356,1750608671531,-532.80000619,0.00023561,3]
[366996357,1750608671541,-460.0,0.00023561,3]
[366996358,1750608671551,-460.0,0.00023561,3]
[366996359,1750608671561,-438.06299249,0.00023561,3]
[366996360,1750608671571,-460.0,0.00023561,3]
[366996361,1750608671581,-460.0,0.00023561,3]
[366996362,1750608671590,-460.0,0.00023561,3]
[366996363,1750608671599,-850.87,0.00023561,3]
[366996364,1750608671608,-460.0,0.00023561,3]
[366996365,1750608671616,-460.0,0.00023561,3]
[366996366,1750608671625,-543.27,0.00023561,3]
[366996367,1750608671633,-200.0,0.00023561,3]
[366996368,1750608671641,-200.0,0.00023561,3]
[366996369,1750608671650,-200.0,0.00023561,3]
[366996370,1750608671660,-200.0,0.00023561,3]
[366996371,1750608671671,-200.0,0.00023561,3]
[366996372,1750608671680,-200.0,0.00023561,3]
[366996373,1750608671690,-200.0,0.00023561,3]
[366996374,1750608671700,-460.0,0.00023561,3]
[366996375,1750608671709,-460.0,0.00023561,3]
[366996376,1750608671722,-7736.37,0.00023561,3]
[366996377,1750608671732,-3449.23,0.00023561,3]
[366996378,1750608671742,-460.0,0.00023561,3]
[366996379,1750608671751,-500.0,0.00023561,2]
[366996380,1750608671761,-460.0,0.00023561,3]
[366996381,1750608671770,-460.0,0.00023561,3]
[366996382,1750608671779,-460.0,0.00023561,3]
[366996383,1750608671789,-460.0,0.00023561,3]
[366996384,1750608671800,-460.0,0.00023561,3]
[366996385,1750608671810,-500.0,0.00023561,3]
[366996386,1750608671820,-460.0,0.00023561,3]
[366996387,1750608671830,-746.41,0.00023561,3]
[366996388,1750608671839,-460.0,0.00023561,3]
[366996389,1750608671848,-460.0,0.00023561,3]
[366996390,1750608671858,-898.76,0.00023561,3]
[366996391,1750608671868,-3782.55,0.00023561,3]
[366996392,1750608671877,-626.49,0.00023561,3]
[366996393,1750608671888,-1088.41,0.00023561,3]
[366996394,1750608671898,-9889.59,0.00023561,3]
[366996395,1750608671908,-460.0,0.00023561,3]
[366996396,1750608671917,-460.0,0.00023561,3]
[366996397,1750608671927,-1858.32,0.00023561,3]
[366996398,1750608671936,-460.0,0.00023561,3]
[366996399,1750608671945,-460.0,0.00023561,3]
[366996400,1750608671955,-1040.55,0.00023561,3]
[366996401,1750608671964,-460.0,0.00023561,3]
[366996402,1750608671974,-197.165566,0.00023561,7]
[366996403,1750608671984,-4034.38,0.00023561,3]
[366996404,1750608671994,-4594.28,0.00023561,3]
[366996405,1750608672004,-460.0,0.00023561,3]
[366996406,1750608672014,-12312.43,0.00023561,3]
[366996407,1750608672023,-460.0,0.00023561,3]
[366996408,1750608672033,-460.0,0.00023561,3]
[366996409,1750608672042,-1386.56,0.00023561,3]
[366996410,1750608672051,-490.66396451,0.00023561,3]
[366996411,1750608672061,-388.4864718,0.00023561,3]
[366996412,1750608672071,-460.0,0.00023561,3]
[366996413,1750608672081,-874.5,0.00023561,3]
[366996414,1750608672091,-460.0,0.00023561,3]
[366996415,1750608672100,-460.0,0.00023561,3]
[366996416,1750608672110,-503.11,0.00023561,3]
[366996417,1750608672119,-486.25,0.00023561,3]
[366996418,1750608672129,-460.0,0.00023561,3]
[366996419,1750608672138,-1127.01,0.00023561,3]
[366996420,1750608672148,-550.22,0.00023561,3]
[366996421,1750608672158,-1624.57,0.00023561,3]
[366996422,1750608672168,-460.0,0.00023561,3]
[366996423,1750608672178,-460.0,0.00023561,3]
[366996424,1750608672188,-460.0,0.00023561,3]
[366996425,1750608672198,-5404.38,0.00023561,3]
[366996426,1750608672208,-1987.52,0.00023561,3]
[366996427,1750608672217,-510.34,0.00023561,3]
[366996428,1750608672230,-460.0,0.00023561,3]
[366996429,1750608672239,-460.0,0.00023561,3]
[366996430,1750608672248,-672.14,0.00023561,3]
[366996431,1750608672258,-1620.57,0.00023561,3]
[366996432,1750608672268,-5904.96,0.00023561,3]
[366996433,1750608672277,-460.0,0.00023561,3]
[366996434,1750608672287,-1310.32,0.00023561,3]
[366996435,1750608672297,-924.34,0.00023561,3]
[366996436,1750608672306,-460.0,0.00023561,3]
[366996437,1750608672316,-10512.44,0.00023561,3]
[366996438,1750608672326,-460.0,0.00023561,3]
[366996439,1750608672336,-460.0,0.00023561,3]
[366996440,1750608672345,-426.48097085,0.00023561,3]
[366996441,1750608672355,-5877.56,0.00023561,3]
[366996442,1750608672365,-460.0,0.00023561,3]
[366996443,1750608672375,-460.0,0.00023561,3]
[366996444,1750608672384,-654.33,0.00023561,3]
[366996445,1750608672394,-1017.73,0.00023561,3]
[366996446,1750608672403,-1430.42,0.00023561,3]
[366996447,1750608672414,-460.0,0.00023561,3]
[366996448,1750608672424,-347.70406953,0.00023561,3]
[366996449,1750608672434,-460.0,0.00023561,3]
[366996450,1750608672443,-8757.47,0.00023561,3]
[366996451,1750608672452,-460.0,0.00023561,3]
[366996452,1750608672462,-287.80800468,0.00023561,3]
[366996453,1750608672472,-482.53,0.00023561,3]
[366996454,1750608672482,-607.68,0.00023561,3]
[366996455,1750608672492,-460.0,0.00023561,3]
[366996456,1750608672501,-460.0,0.00023561,3]
[366996457,1750608672511,-460.0,0.00023561,3]
[366996458,1750608672520,-460.0,0.00023561,3]
[366996459,1750608672530,-8603.89,0.00023561,3]
[366996460,1750608672540,-460.0,0.00023561,3]
[366996461,1750608672551,-471.11,0.00023561,3]
[366996462,1750608672561,-1448.83,0.00023561,3]
[366996463,1750608672571,-1313.53,0.00023561,3]
[366996464,1750608672580,-452.43970651,0.00023561,3]
[366996465,1750608672589,-2431.79,0.00023561,3]
[366996466,1750608672599,-460.0,0.00023561,3]
[366996467,1750608672608,-517.92,0.00023561,3]
[366996468,1750608672618,-1289.24,0.00023561,3]
[366996469,1750608672628,-476.07,0.00023561,3]
[366996470,1750608672638,-562.903377,0.00023561,7]
[366996471,1750608672648,-712.15,0.00023561,3]
[366996472,1750608672657,-508.97,0.00023561,3]
[366996473,1750608672666,-473.84,0.00023561,3]
[366996474,1750608672676,-540.7,0.00023561,3]
[366996475,1750608672686,-460.0,0.00023561,3]
[366996476,1750608672695,-1828.5,0.00023561,3]
[366996477,1750608672704,-562.903377,0.00023561,7]
[366996478,1750608672713,-460.0,0.00023561,3]
[366996479,1750608672727,-1134.34,0.00023561,3]
[366996480,1750608672737,-460.0,0.00023561,3]
[366996481,1750608672746,-909.69,0.00023561,3]
[366996482,1750608672755,-833.39,0.00023561,3]
[366996483,1750608672766,-598.63,0.00023561,3]
[366996484,1750608672775,-841.82,0.00023561,3]
[366996485,1750608672785,-4415.03,0.00023561,3]
[366996486,1750608672795,-587.45,0.00023561,3]
[366996487,1750608672805,-4193.71,0.00023561,3]
[366996488,1750608672815,-493.51,0.00023561,3]
[366996489,1750608672825,-1128.05,0.00023561,3]
[366996490,1750608672834,-1873.4,0.00023561,3]
[366996491,1750608672844,-3944.09,0.00023561,3]
[366996492,1750608672853,-460.0,0.00023561,3]
[366996493,1750608672863,-958.01,0.00023561,3]
[366996494,1750608672872,-889.94,0.00023561,3]
[366996495,1750608673036,-460.0,0.00023561,3]
[366996496,1750608673046,-1251.42,0.00023561,3]
[366996497,1750608673056,-481.22,0.00023561,3]
[366996498,1750608673066,-2099.83,0.00023561,3]
[366996499,1750608673075,-460.0,0.00023561,3]
[366996500,1750608673085,-283.5,0.00023561,3]
[366996501,1750608673095,-460.0,0.00023561,3]
[366996502,1750608673105,-622.74,0.00023561,3]
[366996503,1750608673115,-460.0,0.00023561,3]
[366996504,1750608673126,-487.77,0.00023561,3]
[366996505,1750608673136,-460.0,0.00023561,3]
[366996506,1750608673146,-213.35040464,0.00023561,3]
[366996507,1750608673157,-587.42,0.00023561,3]
[366996508,1750608673167,-629.59,0.00023561,3]
[366996509,1750608673177,-460.0,0.00023561,3]
[366996510,1750608673187,-460.0,0.00023561,3]
[366996511,1750608673196,-460.0,0.00023561,3]
[366996512,1750608673206,-632.06,0.00023561,3]
[366996513,1750608673216,-2798.38,0.00023561,3]
[366996514,1750608673227,-670.3,0.00023561,3]
[366996515,1750608673237,-3734.12,0.00023568,3]
[366996516,1750608673246,-700.0,0.00023571,2]
[366996517,1750608673256,-2000.0,0.000236,6]
[366996518,1750608673266,-60170.31380958,0.000236,2]
[366996519,1750608673275,-214.908839,0.000236,7]
[366996520,1750608673285,-8793.62,0.000236,7]
[366996521,1750608673294,-113784.95,0.000236,2]
[366996522,1750608673304,-800.0,0.00023602,2]
[366996523,1750608673313,-500.0,0.00023612,2]
[366996524,1750608673323,-2000.0,0.00023616,2]
[366996525,1750608673332,-2000.0,0.00023616,2]
[366996526,1750608673342,-244.4534282,0.00023616,2]
[366996527,1750608673351,-882.99984178,0.00023616,2]
[366996528,1750608673360,-2000.0,0.00023616,2]
[366996529,1750608673370,-2000.0,0.00023616,2]
[366996530,1750608673380,-2000.0,0.00023616,2]
[366996531,1750608673390,-2000.0,0.00023616,2]
[366996532,1750608673399,-1000.0,0.00023621,2]
[366996533,1750608673408,-517.00462772,0.00023621,2]
[366996534,1750608673418,-1000.0,0.00023621,2]
[366996535,1750608673428,-1000.0,0.00023621,2]
[366996536,1750608673437,-1000.0,0.00023621,2]
[366996537,1750608673447,-1081.17648423,0.00023621,2]
[366996538,1750608673457,-1000.0,0.00023621,2]
[366996539,1750608673467,-978.52766168,0.00023621,2]
[366996540,1750608673479,-1000.0,0.00023621,2]
[366996541,1750608673489,-1000.0,0.00023621,2]
[366996542,1750608673499,-300.0,0.00023621,2]
[366996543,1750608673509,-1000.0,0.00023621,2]
[366996544,1750608673518,-1000.0,0.00023621,2]
[366996545,1750608673528,-1000.0,0.00023621,2]
[366996546,1750608673538,-1000.0,0.00023621,2]
[366996547,1750608673548,-1000.0,0.00023621,2]
[366996548,1750608673558,-264.32452911,0.00023641,2]
[366996549,1750608673567,-2300.0,0.00023643,2]
[366996550,1750608673578,-5888.0,0.00023656,2]
[366996551,1750608673588,-2300.0,0.00023657,2]
[366996552,1750608673598,-5888.0,0.00023658,2]
[366996553,1750608673608,-500.0,0.0002366,2]
[366996554,1750608673618,-620.06771355,0.00023666,10]
[366996555,1750608673628,-800.0,0.00023672,2]
[366996556,1750608673639,-800.0,0.00023676,2]
[366996557,1750608673649,-600.0,0.00023678,2]
[366996558,1750608673659,-6000.0,0.00023682,2]
[366996559,1750608673670,-600.0,0.00023687,2]
[366996560,1750608673680,-190.0,0.0002369,2]
[366996561,1750608673691,-2300.0,0.00023691,2]
[366996562,1750608673701,-500.0,0.00023691,2]
[366996563,1750608673711,-2000.0,0.000237,6]
[366996564,1750608673727,-10000.0,0.000237,5]
[366996565,1750608673737,-2300.0,0.00023703,2]
[366996566,1750608673747,-700.0,0.0002371,2]
[366996567,1750608673757,-587.0,0.00023711,2]
[366996568,1750608673767,-800.0,0.00023713,2]
[366996569,1750608673776,-2300.0,0.00023715,2]
[366996570,1750608673787,-151.0,0.00023726,7]
[366996571,1750608673799,-262.589347,0.00023726,7]
[366996572,1750608673809,-151.0,0.00023726,7]
[366996573,1750608673820,-7000.0,0.00023726,2]
[366996574,1750608673830,-700.0,0.00023727,2]
[366996575,1750608673840,-153.95703304,0.00023728,2]
[366996576,1750608673849,-700.0,0.00023728,2]
[366996577,1750608673859,-600.0,0.0002373,2]
[366996578,1750608673869,-188.309962,0.00023744,2]
[366996579,1750608673878,-700.0,0.00023745,2]
[366996580,1750608673888,-700.0,0.00023749,2]
[366996581,1750608673898,-5888.0,0.0002375,2]
[366996582,1750608673907,-988.5110856,0.00023753,3]
[366996583,1750608673916,-4920.93572885,0.00023758,2]
[366996584,1750608673926,-1715.808127,0.0002378,5]
[366996585,1750608673935,-9000.0,0.00023788,3]
[366996586,1750608673945,-634.3,0.0002379,6]
[366996587,1750608673954,-151.0,0.000238,7]
[366996588,1750608673963,-151.0,0.000238,7]
[366996589,1750608673973,-151.0,0.000238,7]
[366996590,1750608673986,-151.0,0.000238,7]
[366996591,1750608673995,-151.0,0.000238,7]
[366996592,1750608674005,-151.0,0.000238,7]
[366996593,1750608674014,-151.0,0.000238,7]
[366996594,1750608674024,-151.0,0.000238,7]
[366996595,1750608674034,-151.0,0.000238,7]
[366996596,1750608674043,-151.0,0.000238,7]
[366996597,1750608674054,-390.944696,0.000238,7]
[366996598,1750608674063,-390.944696,0.000238,7]
[366996599,1750608674073,-618.4547,0.000238,7]
[366996600,1750608674083,-618.4547,0.000238,7]
[366996601,1750608674093,-151.0,0.000238,7]
[366996602,1750608674103,-151.0,0.000238,7]
[366996603,1750608674113,-1000.0,0.000238,5]
[366996604,1750608674122,-12000.0,0.00023812,3]
[366996605,1750608674132,-2000.0,0.00023816,2]
[366996606,1750608674142,-2000.0,0.00023816,2]
[366996607,1750608674152,-1979.0637974,0.00023816,2]
[366996608,1750608674162,-2000.0,0.00023816,2]
[366996609,1750608674171,-2000.0,0.00023816,2]
[366996610,1750608674181,-2000.0,0.00023816,2]
[366996611,1750608674191,-2000.0,0.00023816,2]
[366996612,1750608674201,-2078.97823101,0.00023816,2]
[366996613,1750608674211,-877.46271169,0.00023816,2]
[366996614,1750608674220,-2000.0,0.00023816,2]
[366996615,1750608674232,-2050.10645231,0.00023819,2]
[366996616,1750608674242,-1000.0,0.0002382,5]
[366996617,1750608674253,-933.69697014,0.00023822,2]
[366996618,1750608674263,-1473.63,0.00023824,2]
[366996619,1750608674273,-204.213374,0.00023835,7]
[366996620,1750608674282,-204.213374,0.00023835,7]
[366996621,1750608674291,-151.0,0.00023835,7]
[366996622,1750608674300,-460.0,0.00023835,3]
[366996623,1750608674309,-241.416361,0.00023835,7]
[366996624,1750608674319,-241.416361,0.00023835,7]
[366996625,1750608674328,-251.622977,0.00023835,7]
[366996626,1750608674338,-251.622977,0.00023835,7]
[366996627,1750608674347,-151.0,0.00023835,7]
[366996628,1750608674356,-460.0,0.00023835,3]
[366996629,1750608674366,-460.0,0.00023835,3]
[366996630,1750608674376,-460.0,0.00023835,3]
[366996631,1750608674386,-460.0,0.00023835,3]
[366996632,1750608674397,-460.0,0.00023835,3]
[366996633,1750608674408,-151.0,0.00023835,7]
[366996634,1750608674417,-755.004586,0.00023835,7]
[366996635,1750608674427,-755.004586,0.00023835,7]
[366996636,1750608674436,-460.0,0.00023835,3]
[366996637,1750608674446,-460.0,0.00023835,3]
[366996638,1750608674456,-460.0,0.00023835,3]
[366996639,1750608674466,-232.58283485,0.00023835,3]
[366996640,1750608674477,-460.0,0.00023835,3]
[366996641,1750608674487,-1000.0,0.00023835,3]
[366996642,1750608674497,-870.16,0.00023835,3]
[366996643,1750608674506,-460.0,0.00023835,3]
[366996644,1750608674516,-460.0,0.00023835,3]
[366996645,1750608674526,-460.0,0.00023835,3]
[366996646,1750608674535,-460.0,0.00023835,3]
[366996647,1750608674545,-460.0,0.00023835,3]
[366996648,1750608674555,-460.0,0.00023835,3]
[366996649,1750608674569,-498.51,0.00023835,3]
[366996650,1750608674588,-460.0,0.00023835,3]
[366996651,1750608674602,-460.0,0.00023835,3]
[366996652,1750608674617,-460.0,0.00023835,3]
[366996653,1750608674630,-479.16,0.00023835,3]
[366996654,1750608674645,-460.0,0.00023835,3]
[366996655,1750608674661,-460.0,0.00023835,3]
[366996656,1750608674676,-717.9,0.00023835,3]
[366996657,1750608674692,-749.12,0.00023835,3]
[366996658,1750608674706,-460.0,0.00023835,3]
[366996659,1750608674723,-484.78,0.00023835,3]
[366996660,1750608674739,-460.0,0.00023835,3]
[366996661,1750608674754,-460.0,0.00023835,3]
[366996662,1750608674768,-575.92,0.00023835,3]
[366996663,1750608674780,-460.0,0.00023835,3]
[366996664,1750608674794,-460.0,0.00023835,3]
[366996665,1750608674809,-460.0,0.00023835,3]
[366996666,1750608674824,-460.0,0.00023835,3]
[366996667,1750608674838,-547.61,0.00023835,3]
[366996668,1750608674854,-460.0,0.00023835,3]
[366996669,1750608674869,-636.32,0.00023835,3]
[366996670,1750608674881,-1116.41,0.00023835,3]
[366996671,1750608674892,-460.0,0.00023835,3]
[366996672,1750608674905,-229.01381914,0.00023835,3]
[366996673,1750608674921,-526.0,0.00023835,3]
[366996674,1750608674934,-460.0,0.00023835,3]
[366996675,1750608674947,-460.0,0.00023835,3]
[366996676,1750608674960,-460.0,0.00023835,3]
[366996677,1750608674974,-460.0,0.00023835,3]
[366996678,1750608674987,-460.0,0.00023835,3]
[366996679,1750608674999,-592.81,0.00023835,3]
[366996680,1750608675011,-540.84,0.00023835,13]
[366996681,1750608675024,-518.3,0.00023835,13]
[366996682,1750608675036,-811.66,0.00023835,3]
[366996683,1750608675048,-460.0,0.00023835,3]
[366996684,1750608675060,-460.0,0.00023835,3]
[366996685,1750608675073,-460.0,0.00023835,3]
[366996686,1750608675086,-460.0,0.00023835,3]
[366996687,1750608675098,-460.0,0.00023835,3]
[366996688,1750608675110,-658.49,0.00023835,3]
[366996689,1750608675123,-460.0,0.00023835,3]
[366996690,1750608675135,-460.0,0.00023835,3]
[366996691,1750608675148,-460.0,0.00023835,3]
[366996692,1750608675160,-460.0,0.00023835,3]
[366996693,1750608675174,-460.0,0.00023835,3]
[366996694,1750608675186,-460.0,0.00023835,3]
[366996695,1750608675199,-850.87,0.00023835,3]
[366996696,1750608675210,-460.0,0.00023835,3]
[366996697,1750608675223,-460.0,0.00023835,3]
[366996698,1750608675237,-200.0,0.00023835,3]
[366996699,1750608675249,-607.79256363,0.00023835,3]
[366996700,1750608675262,-460.0,0.00023835,3]
[366996701,1750608675274,-7736.37,0.00023835,3]
[366996702,1750608675286,-460.0,0.00023835,3]
[366996703,1750608675299,-3449.23,0.00023835,3]
[366996704,1750608675312,-460.0,0.00023835,3]
[366996705,1750608675324,-460.0,0.00023835,3]
[366996706,1750608675337,-460.0,0.00023835,3]
[366996707,1750608675350,-460.0,0.00023835,3]
[366996708,1750608675361,-460.0,0.00023835,3]
[366996709,1750608675373,-500.0,0.00023835,3]
[366996710,1750608675386,-460.0,0.00023835,3]
[366996711,1750608675398,-746.41,0.00023835,3]
[366996712,1750608675410,-460.0,0.00023835,3]
[366996713,1750608675423,-460.0,0.00023835,3]
[366996714,1750608675435,-898.76,0.00023835,3]
[366996715,1750608675448,-3782.55,0.00023835,3]
[366996716,1750608675460,-626.49,0.00023835,3]
[366996717,1750608675473,-1088.41,0.00023835,3]
[366996718,1750608675487,-9889.59,0.00023835,3]
[366996719,1750608675500,-460.0,0.00023835,3]
[366996720,1750608675513,-460.0,0.00023835,3]
[366996721,1750608675526,-1858.32,0.00023835,3]
[366996722,1750608675539,-460.0,0.00023835,3]
[366996723,1750608675552,-460.0,0.00023835,3]
[366996724,1750608675565,-1040.55,0.00023835,3]
[366996725,1750608675578,-460.0,0.00023835,3]
[366996726,1750608675590,-4034.38,0.00023835,3]
[366996727,1750608675603,-4594.28,0.00023835,3]
[366996728,1750608675615,-575.71113709,0.00023835,3]
[366996729,1750608675628,-12312.43,0.00023835,3]
[366996730,1750608675641,-480.72030663,0.00023835,3]
[366996731,1750608675654,-460.0,0.00023835,3]
[366996732,1750608675666,-1386.56,0.00023835,3]
[366996733,1750608675678,-460.0,0.00023835,3]
[366996734,1750608675691,-874.5,0.00023835,3]
[366996735,1750608675703,-460.0,0.00023835,3]
[366996736,1750608675716,-336.74408421,0.00023835,3]
[366996737,1750608675732,-503.11,0.00023835,3]
[366996738,1750608675744,-486.25,0.00023835,3]
[366996739,1750608675757,-460.0,0.00023835,3]
[366996740,1750608675772,-1127.01,0.00023835,3]
[366996741,1750608675785,-550.22,0.00023835,3]
[366996742,1750608675797,-1624.57,0.00023835,3]
[366996743,1750608675809,-460.0,0.00023835,3]
[366996744,1750608675822,-460.0,0.00023835,3]
[366996745,1750608675835,-460.0,0.00023835,3]
[366996746,1750608675847,-5404.38,0.00023835,3]
[366996747,1750608675858,-1987.52,0.00023835,3]
[366996748,1750608675871,-510.34,0.00023835,3]
[366996749,1750608675883,-460.0,0.00023835,3]
[366996750,1750608675895,-460.0,0.00023835,3]
[366996751,1750608675907,-672.14,0.00023835,3]
[366996752,1750608675919,-1620.57,0.00023835,3]
[366996753,1750608675930,-5904.96,0.00023835,3]
[366996754,1750608675942,-460.0,0.00023835,3]
[366996755,1750608675954,-924.34,0.00023835,3]
[366996756,1750608675966,-1310.32,0.00023835,3]
[366996757,1750608675979,-460.0,0.00023835,3]
[366996758,1750608675991,-10512.44,0.00023835,3]
[366996759,1750608676003,-460.0,0.00023835,3]
[366996760,1750608676015,-460.0,0.00023835,3]
[366996761,1750608676028,-5877.56,0.00023835,3]
[366996762,1750608676040,-472.06614938,0.00023835,3]
[366996763,1750608676051,-460.0,0.00023835,3]
[366996764,1750608676060,-654.33,0.00023835,3]
[366996765,1750608676070,-1017.73,0.00023835,3]
[366996766,1750608676080,-1430.42,0.00023835,3]
[366996767,1750608676090,-460.0,0.00023835,3]
[366996768,1750608676101,-460.0,0.00023835,3]
[366996769,1750608676111,-8757.47,0.00023835,3]
[366996770,1750608676121,-460.0,0.00023835,3]
[366996771,1750608676131,-482.53,0.00023835,3]
[366996772,1750608676141,-607.68,0.00023835,3]
[366996773,1750608676151,-460.0,0.00023835,3]
[366996774,1750608676160,-292.55422813,0.00023835,3]
[366996775,1750608676170,-460.0,0.00023835,3]
[366996776,1750608676179,-267.32177611,0.00023835,3]
[366996777,1750608676189,-8603.89,0.00023835,3]
[366996778,1750608676198,-460.0,0.00023835,3]
[366996779,1750608676208,-471.11,0.00023835,3]
[366996780,1750608676218,-1448.83,0.00023835,3]
[366996781,1750608676228,-1313.53,0.00023835,3]
[366996782,1750608676238,-2431.79,0.00023835,3]
[366996783,1750608676249,-460.0,0.00023835,3]
[366996784,1750608676258,-517.92,0.00023835,3]
[366996785,1750608676268,-1289.24,0.00023835,3]
[366996786,1750608676278,-476.07,0.00023835,3]
[366996787,1750608676288,-562.903377,0.00023835,7]
[366996788,1750608676298,-712.15,0.00023835,3]
[366996789,1750608676308,-508.97,0.00023835,3]
[366996790,1750608676317,-473.84,0.00023835,3]
[366996791,1750608676328,-540.7,0.00023835,3]
[366996792,1750608676340,-460.0,0.00023835,3]
[366996793,1750608676350,-1828.5,0.00023835,3]
[366996794,1750608676360,-562.903377,0.00023835,7]
[366996795,1750608676369,-460.0,0.00023835,3]
[366996796,1750608676379,-460.0,0.00023835,3]
[366996797,1750608676679,-909.69,0.00023835,3]
[366996798,1750608676705,-833.39,0.00023835,3]
[366996799,1750608676723,-598.63,0.00023835,3]
[366996800,1750608676736,-841.82,0.00023835,3]
[366996801,1750608676745,-4415.03,0.00023835,3]
[366996802,1750608676755,-4193.71,0.00023835,3]
[366996803,1750608676766,-587.45,0.00023835,3]
[366996804,1750608676776,-1134.34,0.00023835,3]
[366996805,1750608676785,-493.51,0.00023835,3]
[366996806,1750608676795,-1128.05,0.00023835,3]
[366996807,1750608676805,-1873.4,0.00023835,3]
[366996808,1750608676815,-3944.09,0.00023835,3]
[366996809,1750608676824,-460.0,0.00023835,3]
[366996810,1750608676834,-958.01,0.00023835,3]
[366996811,1750608676843,-889.94,0.00023835,3]
[366996812,1750608676853,-460.0,0.00023835,3]
[366996813,1750608676862,-1251.42,0.00023835,3]
[366996814,1750608676872,-481.22,0.00023835,3]
[366996815,1750608676882,-460.0,0.00023835,3]
[366996816,1750608676892,-460.0,0.00023835,3]
[366996817,1750608676901,-622.74,0.00023835,3]
[366996818,1750608676912,-460.0,0.00023835,3]
[366996819,1750608676922,-487.77,0.00023835,3]
[366996820,1750608676933,-2099.83,0.00023835,3]
[366996821,1750608676943,-460.0,0.00023835,3]
[366996822,1750608676953,-587.42,0.00023835,3]
[366996823,1750608676963,-629.59,0.00023835,3]
[366996824,1750608676973,-460.0,0.00023835,3]
[366996825,1750608676985,-460.0,0.00023835,3]
[366996826,1750608676994,-460.0,0.00023835,3]
[366996827,1750608677004,-632.06,0.00023835,3]
[366996828,1750608677013,-2798.38,0.00023835,3]
[366996829,1750608677022,-600.0,0.00023837,2]
[366996830,1750608677032,-1000.0,0.0002384,5]